[Event "Titled Tuesday Blitz June 07 Early 2022"]
[White "Golizadeh, Asghar"]
[Black "Shubin, Kirill"]
[WhiteFideId "12505269"]
[BlackFideId "34119962"]
[WhiteElo "2403"]
[BlackElo "2474"]
[Result "0-1"]
[Round "01"]
[TimeControl "180+1"]
[Date "2022.06.07"]
[WhiteClock "0:01:05"]
[BlackClock "0:01:18"]

1. e4 {[%clk 0:02:57]}  e6 {[%clk 0:02:37]} 2. d4 {[%clk 0:02:57]}  d5 {[%clk 0:02:37]} 3. Nc3 {[%clk 0:02:58]}  Bb4 {[%clk 0:02:37]} 4. e5 {[%clk 0:02:57]}  b6 {[%clk 0:02:38]} 5. h4 {[%clk 0:02:54]}  Ne7 {[%clk 0:02:35]} 6. h5 {[%clk 0:02:53]}  h6 {[%clk 0:02:35]} 7. Qg4 {[%clk 0:02:51]}  Rg8 {[%clk 0:02:33]} 8. a3 {[%clk 0:02:46]}  Bxc3+ {[%clk 0:02:33]} 9. bxc3 {[%clk 0:02:47]}  Ba6 {[%clk 0:02:34]} 10. Rh3 {[%clk 0:02:38]}  Bxf1 {[%clk 0:02:32]} 11. Kxf1 {[%clk 0:02:39]}  Qd7 {[%clk 0:02:31]} 12. Rf3 {[%clk 0:02:38]}  c5 {[%clk 0:02:30]} 13. Ne2 {[%clk 0:02:34]}  Nbc6 {[%clk 0:02:26]} 14. Qf4 {[%clk 0:02:32]}  Rf8 {[%clk 0:02:08]} 15. a4 {[%clk 0:02:21]}  cxd4 {[%clk 0:01:59]} 16. cxd4 {[%clk 0:02:16]}  Rc8 {[%clk 0:01:55]} 17. Ba3 {[%clk 0:02:10]}  Na5 {[%clk 0:01:55]} 18. Nc3 {[%clk 0:01:51]}  a6 {[%clk 0:01:42]} 19. Bd6 {[%clk 0:01:47]}  Nc4 {[%clk 0:01:41]} 20. Rg3 {[%clk 0:01:40]}  Nxd6 {[%clk 0:01:39]} 21. exd6 {[%clk 0:01:38]}  Nf5 {[%clk 0:01:39]} 22. Rg4 {[%clk 0:01:12]}  Rxc3 {[%clk 0:01:37]} 23. Rb1 {[%clk 0:01:12]}  Qxd6 {[%clk 0:01:36]} 24. Qd2 {[%clk 0:01:11]}  Qc6 {[%clk 0:01:34]} 25. Rxb6 {[%clk 0:01:10]}  Qxb6 {[%clk 0:01:25]} 26. Qxc3 {[%clk 0:01:10]}  Kd7 {[%clk 0:01:25]} 27. Rf4 {[%clk 0:01:09]}  Rc8 {[%clk 0:01:24]} 28. Qd2 {[%clk 0:01:08]}  Qb1+ {[%clk 0:01:23]} 29. Qe1 {[%clk 0:01:06]}  Qxe1+ {[%clk 0:01:22]} 30. Kxe1 {[%clk 0:01:07]}  Rxc2 {[%clk 0:01:22]} 31. g4 {[%clk 0:01:08]}  Nd6 {[%clk 0:01:22]} 32. g5 {[%clk 0:01:07]}  hxg5 {[%clk 0:01:22]} 33. Rf3 {[%clk 0:01:04]}  Rc4 {[%clk 0:01:21]} 34. Rb3 {[%clk 0:01:03]}  Rxd4 {[%clk 0:01:20]} 35. Rb8 {[%clk 0:01:03]}  Rh4 {[%clk 0:01:20]} 36. Rg8 {[%clk 0:01:04]}  Rxh5 {[%clk 0:01:19]} 37. Rxg7 {[%clk 0:01:05]}  Rh8 {[%clk 0:01:18]} 38. Rg8 {[%clk 0:01:05]}  Rxg8 {[%clk 0:01:18]} 0-1


[Site "https://www.chess.com"]

[Event "Titled Tuesday Blitz June 07 Early 2022"]
[White "Gunduz, Umut Erdem"]
[Black "Van Foreest, Jorden"]
[WhiteFideId "6381383"]
[BlackFideId "1039784"]
[WhiteElo "2099"]
[BlackElo "2609"]
[Result "0-1"]
[Round "01"]
[TimeControl "180+1"]
[Date "2022.06.07"]
[WhiteClock "0:00:01"]
[BlackClock "0:00:38"]

1. e4 {[%clk 0:03:00]}  b6 {[%clk 0:02:58]} 2. d4 {[%clk 0:03:00]}  Bb7 {[%clk 0:02:54]} 3. Bd3 {[%clk 0:02:58]}  d6 {[%clk 0:02:54]} 4. Nf3 {[%clk 0:02:48]}  Nd7 {[%clk 0:02:55]} 5. O-O {[%clk 0:02:47]}  e5 {[%clk 0:02:55]} 6. c3 {[%clk 0:02:42]}  Ngf6 {[%clk 0:02:55]} 7. Re1 {[%clk 0:02:41]}  g6 {[%clk 0:02:54]} 8. a4 {[%clk 0:02:39]}  a6 {[%clk 0:02:54]} 9. b3 {[%clk 0:02:29]}  Bg7 {[%clk 0:02:53]} 10. dxe5 {[%clk 0:02:28]}  dxe5 {[%clk 0:02:44]} 11. Ba3 {[%clk 0:02:25]}  Bf8 {[%clk 0:02:43]} 12. Bxf8 {[%clk 0:02:10]}  Kxf8 {[%clk 0:02:44]} 13. b4 {[%clk 0:02:03]}  Kg7 {[%clk 0:02:38]} 14. a5 {[%clk 0:02:01]}  b5 {[%clk 0:02:36]} 15. Nbd2 {[%clk 0:01:57]}  c5 {[%clk 0:02:36]} 16. Qe2 {[%clk 0:01:55]}  Qe7 {[%clk 0:02:34]} 17. Rab1 {[%clk 0:01:51]}  Rac8 {[%clk 0:02:34]} 18. Nf1 {[%clk 0:01:49]}  cxb4 {[%clk 0:02:27]} 19. cxb4 {[%clk 0:01:49]}  Rc3 {[%clk 0:02:27]} 20. Ng3 {[%clk 0:01:32]}  Rhc8 {[%clk 0:02:28]} 21. Nh4 {[%clk 0:01:30]}  Kh8 {[%clk 0:02:21]} 22. Red1 {[%clk 0:01:30]}  Nf8 {[%clk 0:02:19]} 23. h3 {[%clk 0:01:21]}  Ne6 {[%clk 0:02:15]} 24. Nf3 {[%clk 0:00:56]}  Nf4 {[%clk 0:02:16]} 25. Qf1 {[%clk 0:00:48]}  Rd8 {[%clk 0:02:15]} 26. Bxb5 {[%clk 0:00:36]}  Rxd1 {[%clk 0:02:07]} 27. Rxd1 {[%clk 0:00:37]}  axb5 {[%clk 0:02:07]} 28. Qxb5 {[%clk 0:00:38]}  Kg7 {[%clk 0:01:31]} 29. a6 {[%clk 0:00:27]}  Ba8 {[%clk 0:01:28]} 30. Nxe5 {[%clk 0:00:25]}  Rb3 {[%clk 0:01:22]} 31. Nc6 {[%clk 0:00:25]}  Qe8 {[%clk 0:01:12]} 32. Qc4 {[%clk 0:00:13]}  Ra3 {[%clk 0:01:10]} 33. b5 {[%clk 0:00:13]}  h5 {[%clk 0:01:03]} 34. e5 {[%clk 0:00:13]}  Nd7 {[%clk 0:01:03]} 35. Qxf4 {[%clk 0:00:13]}  Qe6 {[%clk 0:00:59]} 36. Nd4 {[%clk 0:00:11]}  Qd5 {[%clk 0:00:57]} 37. f3 {[%clk 0:00:07]}  Qc5 {[%clk 0:00:55]} 38. e6 {[%clk 0:00:05]}  Nf6 {[%clk 0:00:55]} 39. exf7 {[%clk 0:00:04]}  Kxf7 {[%clk 0:00:56]} 40. Kh2 {[%clk 0:00:03]}  Ra4 {[%clk 0:00:51]} 41. Qb8 {[%clk 0:00:03]}  h4 {[%clk 0:00:50]} 42. Nge2 {[%clk 0:00:02]}  Bd5 {[%clk 0:00:47]} 43. Qd8 {[%clk 0:00:01]}  g5 {[%clk 0:00:45]} 44. Rd2 {[%clk 0:00:01]}  Kg6 {[%clk 0:00:39]} 45. Qb8 {[%clk 0:00:01]}  Ra1 {[%clk 0:00:38]} 0-1


[Site "https://www.chess.com"]

[Event "Titled Tuesday Blitz June 07 Early 2022"]
[White "Hansch, Karsten"]
[Black "Nakamura, Hikaru"]
[WhiteFideId "24692239"]
[BlackFideId "2016192"]
[WhiteElo "2358"]
[BlackElo "2850"]
[Result "0-1"]
[Round "01"]
[TimeControl "180+1"]
[Date "2022.06.07"]
[WhiteClock "0:00:07"]
[BlackClock "0:00:44"]

1. e4 {[%clk 0:03:00]}  g6 {[%clk 0:02:58]} 2. d4 {[%clk 0:03:00]}  Bg7 {[%clk 0:02:59]} 3. Nc3 {[%clk 0:03:00]}  a6 {[%clk 0:02:59]} 4. a4 {[%clk 0:02:59]}  b6 {[%clk 0:02:59]} 5. Nf3 {[%clk 0:02:59]}  Bb7 {[%clk 0:03:00]} 6. Bd3 {[%clk 0:02:59]}  d6 {[%clk 0:03:00]} 7. O-O {[%clk 0:03:00]}  e6 {[%clk 0:03:00]} 8. Re1 {[%clk 0:03:01]}  h6 {[%clk 0:03:00]} 9. Ne2 {[%clk 0:02:53]}  Nd7 {[%clk 0:02:58]} 10. c3 {[%clk 0:02:54]}  e5 {[%clk 0:02:58]} 11. Ng3 {[%clk 0:02:53]}  Ngf6 {[%clk 0:02:58]} 12. h3 {[%clk 0:02:51]}  O-O {[%clk 0:02:58]} 13. Be3 {[%clk 0:02:51]}  exd4 {[%clk 0:02:58]} 14. cxd4 {[%clk 0:02:51]}  c5 {[%clk 0:02:58]} 15. Qd2 {[%clk 0:02:50]}  Kh7 {[%clk 0:02:57]} 16. Rad1 {[%clk 0:02:50]}  Re8 {[%clk 0:02:57]} 17. Bf4 {[%clk 0:02:48]}  Qc7 {[%clk 0:02:50]} 18. d5 {[%clk 0:02:42]}  c4 {[%clk 0:02:39]} 19. Bc2 {[%clk 0:02:41]}  b5 {[%clk 0:02:40]} 20. h4 {[%clk 0:02:39]}  Ng4 {[%clk 0:02:37]} 21. h5 {[%clk 0:02:36]}  Nde5 {[%clk 0:02:30]} 22. Nd4 {[%clk 0:02:24]}  Nd3 {[%clk 0:02:25]} 23. hxg6+ {[%clk 0:02:18]}  fxg6 {[%clk 0:02:23]} 24. Ne6 {[%clk 0:02:09]}  Rxe6 {[%clk 0:02:23]} 25. dxe6 {[%clk 0:02:09]}  Nxe1 {[%clk 0:02:19]} 26. Qxe1 {[%clk 0:02:05]}  Ne5 {[%clk 0:02:14]} 27. axb5 {[%clk 0:02:04]}  axb5 {[%clk 0:02:14]} 28. Qb4 {[%clk 0:02:04]}  Re8 {[%clk 0:01:57]} 29. Qxd6 {[%clk 0:01:56]}  Qxd6 {[%clk 0:01:55]} 30. Rxd6 {[%clk 0:01:56]}  Bc8 {[%clk 0:01:56]} 31. Rd5 {[%clk 0:01:50]}  Nd3 {[%clk 0:01:54]} 32. Bxd3 {[%clk 0:01:35]}  cxd3 {[%clk 0:01:54]} 33. Rxb5 {[%clk 0:01:25]}  Rxe6 {[%clk 0:01:54]} 34. Rd5 {[%clk 0:01:23]}  Ba6 {[%clk 0:01:54]} 35. b4 {[%clk 0:01:22]}  Bc4 {[%clk 0:01:44]} 36. Rd7 {[%clk 0:01:22]}  Kg8 {[%clk 0:01:40]} 37. Bd2 {[%clk 0:01:16]}  Ra6 {[%clk 0:01:32]} 38. f3 {[%clk 0:01:03]}  Ra2 {[%clk 0:01:27]} 39. Nf1 {[%clk 0:01:01]}  Bf8 {[%clk 0:01:26]} 40. Rd4 {[%clk 0:00:55]}  Rc2 {[%clk 0:01:26]} 41. Ne3 {[%clk 0:00:49]}  Rxd2 {[%clk 0:01:26]} 42. Nxc4 {[%clk 0:00:49]}  Rd1+ {[%clk 0:01:26]} 43. Kf2 {[%clk 0:00:49]}  Bxb4 {[%clk 0:01:24]} 44. Rd8+ {[%clk 0:00:49]}  Kg7 {[%clk 0:01:24]} 45. Ne5 {[%clk 0:00:20]}  d2 {[%clk 0:01:13]} 46. Nc4 {[%clk 0:00:20]}  h5 {[%clk 0:01:10]} 47. Rd7+ {[%clk 0:00:18]}  Kf6 {[%clk 0:01:10]} 48. Ne3 {[%clk 0:00:17]}  Bc5 {[%clk 0:00:48]} 49. Rd5 {[%clk 0:00:07]}  Ba7 {[%clk 0:00:49]} 50. e5+ {[%clk 0:00:06]}  Ke6 {[%clk 0:00:47]} 51. Rd3 {[%clk 0:00:07]}  Re1 {[%clk 0:00:44]} 0-1


[Site "https://www.chess.com"]

[Event "Titled Tuesday Blitz June 07 Early 2022"]
[White "Khanin, Semen"]
[Black "Toncheva, Nadya"]
[WhiteFideId "4111990"]
[BlackFideId "2924056"]
[WhiteElo "2442"]
[BlackElo "1888"]
[Result "0-1"]
[Round "01"]
[TimeControl "180+1"]
[Date "2022.06.08"]
[WhiteClock "0:00:20"]
[BlackClock "0:00:03"]

1. e4 {[%clk 0:03:00]}  Nf6 {[%clk 0:02:59]} 2. e5 {[%clk 0:03:00]}  Nd5 {[%clk 0:02:59]} 3. c4 {[%clk 0:03:00]}  Nb6 {[%clk 0:02:55]} 4. d4 {[%clk 0:03:01]}  d6 {[%clk 0:02:54]} 5. exd6 {[%clk 0:03:01]}  exd6 {[%clk 0:02:49]} 6. Nc3 {[%clk 0:03:01]}  g6 {[%clk 0:02:48]} 7. h3 {[%clk 0:03:00]}  Bg7 {[%clk 0:02:47]} 8. Nf3 {[%clk 0:03:00]}  O-O {[%clk 0:02:45]} 9. Be2 {[%clk 0:03:01]}  Re8 {[%clk 0:02:30]} 10. O-O {[%clk 0:03:01]}  Be6 {[%clk 0:02:29]} 11. b3 {[%clk 0:02:59]}  d5 {[%clk 0:02:25]} 12. c5 {[%clk 0:02:58]}  Nc8 {[%clk 0:02:24]} 13. Bf4 {[%clk 0:02:57]}  Nd7 {[%clk 0:02:16]} 14. b4 {[%clk 0:02:50]}  c6 {[%clk 0:02:08]} 15. a4 {[%clk 0:02:48]}  Ne7 {[%clk 0:02:02]} 16. Re1 {[%clk 0:02:43]}  b6 {[%clk 0:01:45]} 17. Ba6 {[%clk 0:02:33]}  bxc5 {[%clk 0:01:41]} 18. Bb7 {[%clk 0:02:27]}  cxd4 {[%clk 0:01:22]} 19. Nxd4 {[%clk 0:02:26]}  Qb6 {[%clk 0:01:20]} 20. Nxe6 {[%clk 0:02:01]}  Qxb7 {[%clk 0:01:17]} 21. Nxg7 {[%clk 0:02:00]}  Kxg7 {[%clk 0:01:17]} 22. Qd4+ {[%clk 0:02:00]}  Kg8 {[%clk 0:01:09]} 23. Bg5 {[%clk 0:01:46]}  Nf5 {[%clk 0:01:04]} 24. Qf4 {[%clk 0:01:46]}  f6 {[%clk 0:00:51]} 25. Bxf6 {[%clk 0:01:40]}  Nxf6 {[%clk 0:00:44]} 26. g4 {[%clk 0:01:40]}  Rxe1+ {[%clk 0:00:37]} 27. Rxe1 {[%clk 0:01:39]}  Qb8 {[%clk 0:00:37]} 28. Qg5 {[%clk 0:01:39]}  Qxb4 {[%clk 0:00:19]} 29. Qxf6 {[%clk 0:01:39]}  Rf8 {[%clk 0:00:19]} 30. Qe5 {[%clk 0:01:39]}  Nh4 {[%clk 0:00:16]} 31. Qe6+ {[%clk 0:01:37]}  Kh8 {[%clk 0:00:15]} 32. Qe7 {[%clk 0:01:10]}  Nf3+ {[%clk 0:00:15]} 33. Kh1 {[%clk 0:01:08]}  Qf4 {[%clk 0:00:16]} 34. Kg2 {[%clk 0:00:56]}  Nxe1+ {[%clk 0:00:14]} 35. Qxe1 {[%clk 0:00:56]}  Qf3+ {[%clk 0:00:14]} 36. Kg1 {[%clk 0:00:56]}  Qxh3 {[%clk 0:00:10]} 37. Qe5+ {[%clk 0:00:56]}  Kg8 {[%clk 0:00:09]} 38. Qe6+ {[%clk 0:00:56]}  Rf7 {[%clk 0:00:09]} 39. Qe8+ {[%clk 0:00:55]}  Kg7 {[%clk 0:00:09]} 40. Qe5+ {[%clk 0:00:55]}  Kh6 {[%clk 0:00:08]} 41. g5+ {[%clk 0:00:50]}  Kh5 {[%clk 0:00:08]} 42. Ne2 {[%clk 0:00:50]}  Qg4+ {[%clk 0:00:06]} 43. Ng3+ {[%clk 0:00:50]}  Kh4 {[%clk 0:00:06]} 44. Qe1 {[%clk 0:00:36]}  Rxf2 {[%clk 0:00:04]} 45. Kh1 {[%clk 0:00:20]}  Qh3+ {[%clk 0:00:03]} 0-1


[Site "https://www.chess.com"]

[Event "Titled Tuesday Blitz June 07 Early 2022"]
[White "Lehtosaari, Mauri"]
[Black "Kamsky, Gata"]
[WhiteFideId "501999"]
[BlackFideId "2000024"]
[WhiteElo "2503"]
[BlackElo "2645"]
[Result "0-1"]
[Round "01"]
[TimeControl "180+1"]
[Date "2022.06.07"]
[WhiteClock "0:00:02"]
[BlackClock "0:00:36"]

1. d4 {[%clk 0:03:00]}  d5 {[%clk 0:02:59]} 2. Nf3 {[%clk 0:03:01]}  Nf6 {[%clk 0:02:59]} 3. Bg5 {[%clk 0:03:02]}  Ne4 {[%clk 0:02:57]} 4. Bf4 {[%clk 0:03:02]}  Bf5 {[%clk 0:02:57]} 5. c3 {[%clk 0:02:50]}  c6 {[%clk 0:02:55]} 6. Nbd2 {[%clk 0:02:47]}  e6 {[%clk 0:02:55]} 7. e3 {[%clk 0:02:46]}  Bd6 {[%clk 0:02:51]} 8. Bxd6 {[%clk 0:02:45]}  Nxd6 {[%clk 0:02:50]} 9. Qb3 {[%clk 0:02:38]}  O-O {[%clk 0:02:47]} 10. Be2 {[%clk 0:02:38]}  Qb6 {[%clk 0:02:47]} 11. O-O {[%clk 0:02:38]}  Nd7 {[%clk 0:02:43]} 12. c4 {[%clk 0:02:37]}  Ne4 {[%clk 0:02:35]} 13. Nxe4 {[%clk 0:02:32]}  Bxe4 {[%clk 0:02:34]} 14. Nd2 {[%clk 0:02:32]}  Bg6 {[%clk 0:02:34]} 15. Rfc1 {[%clk 0:02:31]}  Rfe8 {[%clk 0:02:32]} 16. f4 {[%clk 0:02:18]}  a5 {[%clk 0:02:18]} 17. Nf3 {[%clk 0:01:55]}  Bh5 {[%clk 0:02:08]} 18. c5 {[%clk 0:01:47]}  Qc7 {[%clk 0:02:02]} 19. Qc2 {[%clk 0:01:41]}  Bg6 {[%clk 0:01:59]} 20. Bd3 {[%clk 0:01:41]}  Bxd3 {[%clk 0:01:59]} 21. Qxd3 {[%clk 0:01:41]}  Nf6 {[%clk 0:01:57]} 22. b3 {[%clk 0:01:40]}  Ne4 {[%clk 0:01:56]} 23. Nd2 {[%clk 0:01:39]}  Nxd2 {[%clk 0:01:56]} 24. Qxd2 {[%clk 0:01:40]}  f6 {[%clk 0:01:56]} 25. a3 {[%clk 0:01:39]}  e5 {[%clk 0:01:56]} 26. fxe5 {[%clk 0:01:34]}  fxe5 {[%clk 0:01:56]} 27. b4 {[%clk 0:01:34]}  exd4 {[%clk 0:01:55]} 28. exd4 {[%clk 0:01:33]}  h6 {[%clk 0:01:50]} 29. Re1 {[%clk 0:01:27]}  Rxe1+ {[%clk 0:01:44]} 30. Rxe1 {[%clk 0:01:26]}  axb4 {[%clk 0:01:43]} 31. Qxb4 {[%clk 0:01:27]}  Rf8 {[%clk 0:01:40]} 32. Qd2 {[%clk 0:01:22]}  Qf4 {[%clk 0:01:32]} 33. Qb2 {[%clk 0:00:42]}  Rf7 {[%clk 0:01:17]} 34. h3 {[%clk 0:00:42]}  g6 {[%clk 0:01:15]} 35. Kh1 {[%clk 0:00:33]}  Kg7 {[%clk 0:01:15]} 36. Qc3 {[%clk 0:00:30]}  Qf2 {[%clk 0:01:09]} 37. a4 {[%clk 0:00:26]}  h5 {[%clk 0:01:07]} 38. a5 {[%clk 0:00:25]}  Rf4 {[%clk 0:01:02]} 39. Re7+ {[%clk 0:00:22]}  Kh6 {[%clk 0:00:59]} 40. Qc1 {[%clk 0:00:17]}  Qf1+ {[%clk 0:00:49]} 41. Qxf1 {[%clk 0:00:17]}  Rxf1+ {[%clk 0:00:49]} 42. Kh2 {[%clk 0:00:17]}  Rb1 {[%clk 0:00:49]} 43. Rc7 {[%clk 0:00:16]}  Rb4 {[%clk 0:00:49]} 44. a6 {[%clk 0:00:16]}  bxa6 {[%clk 0:00:49]} 45. Rxc6 {[%clk 0:00:16]}  a5 {[%clk 0:00:48]} 46. Rd6 {[%clk 0:00:16]}  Rxd4 {[%clk 0:00:47]} 47. Ra6 {[%clk 0:00:15]}  a4 {[%clk 0:00:47]} 48. c6 {[%clk 0:00:16]}  Rc4 {[%clk 0:00:47]} 49. Kg3 {[%clk 0:00:15]}  Kg5 {[%clk 0:00:45]} 50. Kf3 {[%clk 0:00:15]}  Kf5 {[%clk 0:00:46]} 51. Ke3 {[%clk 0:00:15]}  Ke5 {[%clk 0:00:46]} 52. Kd3 {[%clk 0:00:15]}  g5 {[%clk 0:00:45]} 53. c7 {[%clk 0:00:13]}  Rxc7 {[%clk 0:00:45]} 54. Rxa4 {[%clk 0:00:13]}  Rb7 {[%clk 0:00:44]} 55. Ra2 {[%clk 0:00:11]}  Rb3+ {[%clk 0:00:43]} 56. Ke2 {[%clk 0:00:11]}  h4 {[%clk 0:00:41]} 57. Rd2 {[%clk 0:00:08]}  Rg3 {[%clk 0:00:40]} 58. Kf2 {[%clk 0:00:09]}  d4 {[%clk 0:00:41]} 59. Re2+ {[%clk 0:00:08]}  Kd5 {[%clk 0:00:40]} 60. Re8 {[%clk 0:00:09]}  d3 {[%clk 0:00:40]} 61. Rd8+ {[%clk 0:00:09]}  Kc4 {[%clk 0:00:40]} 62. Rc8+ {[%clk 0:00:09]}  Kd4 {[%clk 0:00:40]} 63. Rd8+ {[%clk 0:00:09]}  Kc3 {[%clk 0:00:41]} 64. Rc8+ {[%clk 0:00:10]}  Kd2 {[%clk 0:00:41]} 65. Ra8 {[%clk 0:00:07]}  Kd1 {[%clk 0:00:38]} 66. Ra1+ {[%clk 0:00:05]}  Kc2 {[%clk 0:00:39]} 67. Ra2+ {[%clk 0:00:06]}  Kb3 {[%clk 0:00:39]} 68. Rd2 {[%clk 0:00:03]}  Kc3 {[%clk 0:00:39]} 69. Ke1 {[%clk 0:00:04]}  Re3+ {[%clk 0:00:38]} 70. Kd1 {[%clk 0:00:04]}  Re5 {[%clk 0:00:37]} 71. Ra2 {[%clk 0:00:03]}  Rb5 {[%clk 0:00:36]} 72. Ra3+ {[%clk 0:00:03]}  Rb3 {[%clk 0:00:36]} 73. Ra4 {[%clk 0:00:02]}  Rb1# {[%clk 0:00:36]} 0-1


[Site "https://www.chess.com"]

[Event "Titled Tuesday Blitz June 07 Early 2022"]
[White "Maltsevskaya, Aleksandra"]
[Black "Djabri,Massinas"]
[WhiteFideId "24174041"]
[BlackFideId "7905726"]
[WhiteElo "2243"]
[BlackElo "1941"]
[Result "0-1"]
[Round "01"]
[TimeControl "180+1"]
[Date "2022.06.08"]
[WhiteClock "0:00:03"]
[BlackClock "0:00:16"]

1. e4 {[%clk 0:02:58]}  e5 {[%clk 0:02:59]} 2. Nf3 {[%clk 0:02:57]}  Nc6 {[%clk 0:03:00]} 3. Bb5 {[%clk 0:02:57]}  Nf6 {[%clk 0:03:00]} 4. Bxc6 {[%clk 0:02:57]}  dxc6 {[%clk 0:03:00]} 5. d3 {[%clk 0:02:58]}  Bd6 {[%clk 0:03:00]} 6. Nbd2 {[%clk 0:02:59]}  O-O {[%clk 0:03:00]} 7. O-O {[%clk 0:02:56]}  Qe7 {[%clk 0:03:00]} 8. Kh1 {[%clk 0:02:55]}  Nd7 {[%clk 0:02:59]} 9. Ng1 {[%clk 0:02:53]}  f6 {[%clk 0:02:58]} 10. Ne2 {[%clk 0:02:53]}  Nc5 {[%clk 0:02:54]} 11. Ng3 {[%clk 0:02:48]}  g6 {[%clk 0:02:51]} 12. Nc4 {[%clk 0:02:45]}  Ne6 {[%clk 0:02:51]} 13. Bh6 {[%clk 0:02:39]}  Rd8 {[%clk 0:02:46]} 14. Ne3 {[%clk 0:02:22]}  Nf4 {[%clk 0:02:45]} 15. Ne2 {[%clk 0:02:09]}  g5 {[%clk 0:02:44]} 16. Ng3 {[%clk 0:02:04]}  Qf7 {[%clk 0:02:31]} 17. Ngf5 {[%clk 0:02:04]}  Bc5 {[%clk 0:02:26]} 18. Bxg5 {[%clk 0:02:00]}  Qg6 {[%clk 0:02:18]} 19. Bxf4 {[%clk 0:01:51]}  exf4 {[%clk 0:02:19]} 20. Ng4 {[%clk 0:01:47]}  Bxf5 {[%clk 0:02:12]} 21. exf5 {[%clk 0:01:48]}  Qg5 {[%clk 0:02:12]} 22. f3 {[%clk 0:01:22]}  h5 {[%clk 0:02:11]} 23. Nf2 {[%clk 0:01:18]}  Qxf5 {[%clk 0:02:05]} 24. Ne4 {[%clk 0:01:18]}  Be3 {[%clk 0:02:05]} 25. Qe2 {[%clk 0:01:15]}  Kh8 {[%clk 0:02:02]} 26. Rae1 {[%clk 0:01:12]}  Rg8 {[%clk 0:02:01]} 27. c4 {[%clk 0:01:05]}  c5 {[%clk 0:01:56]} 28. b4 {[%clk 0:01:05]}  b6 {[%clk 0:01:53]} 29. bxc5 {[%clk 0:01:02]}  bxc5 {[%clk 0:01:54]} 30. Qb2 {[%clk 0:01:01]}  Rg6 {[%clk 0:01:53]} 31. g4 {[%clk 0:00:24]}  hxg4 {[%clk 0:01:47]} 32. fxg4 {[%clk 0:00:24]}  Qxg4 {[%clk 0:01:19]} 33. Nxf6 {[%clk 0:00:20]}  Qh3 {[%clk 0:01:06]} 34. Nd5+ {[%clk 0:00:16]}  Bd4 {[%clk 0:01:06]} 35. Nxf4 {[%clk 0:00:16]}  Qxf1+ {[%clk 0:01:01]} 36. Rxf1 {[%clk 0:00:17]}  Bxb2 {[%clk 0:01:02]} 37. Nxg6+ {[%clk 0:00:17]}  Kg7 {[%clk 0:01:03]} 38. Nf4 {[%clk 0:00:18]}  Re8 {[%clk 0:00:58]} 39. Kg2 {[%clk 0:00:18]}  Bd4 {[%clk 0:00:53]} 40. Rf3 {[%clk 0:00:17]}  Re1 {[%clk 0:00:52]} 41. h4 {[%clk 0:00:18]}  Ra1 {[%clk 0:00:50]} 42. Ne6+ {[%clk 0:00:13]}  Kg6 {[%clk 0:00:46]} 43. Nxc7 {[%clk 0:00:12]}  Rxa2+ {[%clk 0:00:46]} 44. Kh3 {[%clk 0:00:12]}  a5 {[%clk 0:00:43]} 45. Nb5 {[%clk 0:00:12]}  Be5 {[%clk 0:00:37]} 46. Re3 {[%clk 0:00:10]}  Kf5 {[%clk 0:00:36]} 47. Rf3+ {[%clk 0:00:02]}  Bf4 {[%clk 0:00:36]} 48. Nd6+ {[%clk 0:00:01]}  Ke5 {[%clk 0:00:37]} 49. Nf7+ {[%clk 0:00:02]}  Kf5 {[%clk 0:00:35]} 50. Nh6+ {[%clk 0:00:03]}  Ke5 {[%clk 0:00:34]} 51. Ng4+ {[%clk 0:00:03]}  Kf5 {[%clk 0:00:35]} 52. Nf2 {[%clk 0:00:04]}  a4 {[%clk 0:00:31]} 53. h5 {[%clk 0:00:04]}  Kg5 {[%clk 0:00:24]} 54. h6 {[%clk 0:00:04]}  Be5 {[%clk 0:00:23]} 55. h7 {[%clk 0:00:04]}  Kg6 {[%clk 0:00:21]} 56. Rg3+ {[%clk 0:00:03]}  Kxh7 {[%clk 0:00:19]} 57. Rf3 {[%clk 0:00:04]}  a3 {[%clk 0:00:18]} 58. Ng4 {[%clk 0:00:04]}  Bg7 {[%clk 0:00:18]} 59. Ne3 {[%clk 0:00:03]}  Ra1 {[%clk 0:00:18]} 60. Rf2 {[%clk 0:00:03]}  a2 {[%clk 0:00:15]} 61. Nf5 {[%clk 0:00:03]}  Rh1+ {[%clk 0:00:16]} 62. Kg4 {[%clk 0:00:03]}  a1=Q {[%clk 0:00:17]} 63. Kf4 {[%clk 0:00:03]}  Qe5+ {[%clk 0:00:16]} 64. Kg5 {[%clk 0:00:03]}  Rg1+ {[%clk 0:00:15]} 65. Kh5 {[%clk 0:00:03]}  Qe8+ {[%clk 0:00:14]} 66. Kh4 {[%clk 0:00:03]}  Bf6+ {[%clk 0:00:15]} 67. Kh3 {[%clk 0:00:03]}  Qh5+ {[%clk 0:00:16]} 0-1


[Site "https://www.chess.com"]

[Event "Titled Tuesday Blitz June 07 Early 2022"]
[White "Mikhalsky, Vladimir"]
[Black "Indjic, Aleksandar"]
[WhiteFideId "14144352"]
[BlackFideId "911925"]
[WhiteElo "2301"]
[BlackElo "2616"]
[Result "1-0"]
[Round "01"]
[TimeControl "180+1"]
[Date "2022.06.07"]
[WhiteClock "0:01:23"]
[BlackClock "0:00:52"]

1. d4 {[%clk 0:02:58]}  Nf6 {[%clk 0:02:58]} 2. g3 {[%clk 0:02:55]}  d5 {[%clk 0:02:56]} 3. Bg2 {[%clk 0:02:55]}  Bf5 {[%clk 0:02:56]} 4. Nf3 {[%clk 0:02:56]}  h6 {[%clk 0:02:56]} 5. O-O {[%clk 0:02:56]}  e6 {[%clk 0:02:55]} 6. c4 {[%clk 0:02:56]}  c6 {[%clk 0:02:56]} 7. Nc3 {[%clk 0:02:54]}  Nbd7 {[%clk 0:02:54]} 8. b3 {[%clk 0:02:45]}  Qa5 {[%clk 0:02:51]} 9. Bb2 {[%clk 0:02:44]}  Ba3 {[%clk 0:02:50]} 10. Qc1 {[%clk 0:02:38]}  Bxb2 {[%clk 0:02:49]} 11. Qxb2 {[%clk 0:02:38]}  O-O {[%clk 0:02:49]} 12. a3 {[%clk 0:02:32]}  Qc7 {[%clk 0:02:22]} 13. Rfd1 {[%clk 0:02:23]}  Rfe8 {[%clk 0:01:58]} 14. Rac1 {[%clk 0:02:22]}  a6 {[%clk 0:01:09]} 15. h3 {[%clk 0:02:18]}  Bh7 {[%clk 0:01:00]} 16. e3 {[%clk 0:02:15]}  Rac8 {[%clk 0:00:58]} 17. Ne2 {[%clk 0:02:12]}  Qb8 {[%clk 0:00:58]} 18. Nf4 {[%clk 0:02:05]}  Ne4 {[%clk 0:00:57]} 19. Nd2 {[%clk 0:02:01]}  Nxd2 {[%clk 0:00:56]} 20. Rxd2 {[%clk 0:01:57]}  Nf6 {[%clk 0:00:53]} 21. b4 {[%clk 0:01:52]}  Be4 {[%clk 0:00:52]} 22. Nd3 {[%clk 0:01:23]} 1-0


[Site "https://www.chess.com"]